[Event "USA Championship 2024"]
[Site "Saint Louis"]
[Date "2024.10.12"]
[Round "2.1"]
[White "Caruana, Fabiano"]
[Black "Aronian, Levon"]
[Result "1/2-1/2"]
[ECO "C11"]
[WhiteElo "2796"]
[BlackElo "2738"]
[Annotator "TA"]
[PlyCount "158"]
[EventDate "2024.10.09"]
[EventType "tourn"]
[EventCountry "USA"]
[SourceTitle "playchess.com"]
[Source "ChessBase"]
[SourceQuality "1"]
[TimeControl "40/5400+30:1800+30"]

{[%evp 78,158,0,0,0,0,0,0,-3,-49,-13,-10,0,0,0,0,0,0,0,0,0,0,0,-8,-8,-8,0,-8,-8,-59,-65,-65,-59,-65,-65,-65,-65,-65,-65,-64,-59,-58,-58,-58,-58,-58,-58,-58,-58,-58,-58,-58,-58,-58,-58,-58,-58,-65,-65,-65,-65,-65,-65,-65,-65,-65,-65,-65,-65,-65,-65,-65,-65,-65,-65,-65,-65,-65,-8,-8,-8,-8,-8]} 1. e4 {[%emt 0:00:04]} e6 {[%emt 0:00:04]} 2. d4 {[%emt 0:00:17]} d5 {[%emt 0:00:05]} 3. Nc3 {[%emt 0:00:03]} Nf6 {[%emt 0:00:05]} 4. e5 {[%emt 0:00:15]} Nfd7 {[%emt 0:00:04]} 5. f4 {[%emt 0:00:22]} c5 {[%emt 0:00:04]} 6. dxc5 {[%emt 0:00:09]} Nc6 {[%emt 0:01:40]} 7. Bd2 {[%emt 0:00:15]} Nxc5 {[%emt 0:03:10]} 8. Nf3 {[%emt 0:00:18]} Be7 {[%emt 0:15:48]} 9. Be3 {[%emt 0:00:30]} O-O {[%emt 0:00:24]} 10. a3 {[%emt 0:06:08]} a6 {[%emt 0:07:23]} 11. Be2 {[%emt 0:02:16]} b5 {[%emt 0:01:20]} 12. O-O {[%emt 0:00:14]} Bb7 {[%emt 0:02:13]} 13. Qe1 {[%emt 0:03:07]} Ne4 {[%emt 0:05:05]} 14. Bd3 {[%emt 0:18:23]} Nxc3 {[%emt 0:04:46]} 15. bxc3 {[%emt 0:04:13]} f5 {[%emt 0:01:15]} 16. exf6 {[%emt 0:09:15]} Bxf6 {[%emt 0:00:44]} 17. Bc5 {[%emt 0:08:01]} Re8 {[%emt 0:01:07]} 18. Qg3 {[%emt 0:00:18]} Qc7 {[%emt 0:18:31]} 19. Kh1 {[%emt 0:05:20]} g6 {[%emt 0:02:40]} 20. Bd4 {[%emt 0:04:14]} Rf8 {[%emt 0:01:02]} 21. h4 {[%emt 0:05:35]} Qg7 {[%emt 0:05:22]} 22. Rae1 {[%emt 0:06:22]} Rae8 {[%emt 0:01:01]} 23. Bxf6 {[%emt 0:01:33]} Rxf6 {[%emt 0:02:47]} 24. Nd4 {[%emt 0:00:17]} Kh8 {[%emt 0:06:37]} 25. Rf3 {[%emt 0:04:44]} Qe7 {[%emt 0:06:35]} 26. Qg5 {[%emt 0:05:49]} Nd8 {[%emt 0:01:58]} 27. h5 {[%emt 0:02:11]} Nf7 {[%emt 0:04:57]} 28. Qh4 {[%emt 0:01:11]} gxh5 {[%emt 0:00:16]} 29. g4 {[%emt 0:00:41]} e5 {[%emt 0:06:52]} 30. g5 {[%emt 0:00:20]} Rb6 {[%emt 0:00:19]} 31. Qxh5 {[%emt 0:03:43]} e4 {[%emt 0:00:02]} 32. Rh3 {[%emt 0:00:19]} Nd6 {[%emt 0:00:01]} 33. g6 {[%emt 0:01:07]} Bc8 {[%emt 0:00:59]} 34. Rh2 {[%emt 0:02:28]} Rb7 {[%emt 0:00:24]} 35. Be2 {[%emt 0:06:03]} Qf6 {[%emt 0:00:33]} 36. Rg1 {[%emt 0:01:21]} Rg7 {[%emt 0:00:56]} 37. Qg5 {[%emt 0:00:36]} Rf8 {[%emt 0:00:49]} 38. Qe5 {[%emt 0:00:42]} Qxe5 {[%emt 0:00:43]} 39. fxe5 {[%emt 0:00:03]} Nf5 {[%emt 0:00:06]} 40. Rg5 {[%emt 0:01:06]} Ne7 {[%emt 0:01:10]} 41. Rxh7+ {[%emt 0:06:55]} Rxh7+ {[%emt 0:00:05]} 42. gxh7 {[%emt 0:00:03]} Kxh7 {[%emt 0:01:10]} 43. e6 {[%emt 0:04:16]} (43. Kh2 $11 {is superior.}) 43... Rf6 {[%emt 0:01:37]} 44. Bh5 {[%emt 0:04:18]} Rh6 {[%emt 0:05:19]} (44... Kh6 $5 45. Re5 $8 Kg7 $11) 45. Kg1 {[%emt 0:02:36]} Bxe6 {[%emt 0:00:30]} 46. Re5 {[%emt 0:00:31]} Ng6 {[%emt 0:00:13]} 47. Rxe6 {[%emt 0:00:45]} Rxh5 {[%emt 0:00:13]} 48. Rxa6 {[%emt 0:00:03]} Rh3 {[%emt 0:00:21]} 49. Nxb5 {[%emt 0:05:31]} Nf4 {[%emt 0:00:47]} 50. Ra7+ {[%emt 0:01:54]} Kg6 {[%emt 0:00:39]} 51. Re7 {[%emt 0:00:17]} Rh8 {[%emt 0:02:38]} 52. Nc7 {[%emt 0:06:20]} Kf6 {[%emt 0:00:28]} 53. Nxd5+ {[%emt 0:00:06]} (53. Re8 $1 $11 Rxe8 54. Nxe8+ Ke7 55. Ng7) 53... Nxd5 $15 {[%emt 0:00:03]} 54. Rxe4 {[%emt 0:00:03]} Kf5 {[%emt 0:00:09]} 55. Rd4 {[%emt 0:00:33]} Nxc3 {[%emt 0:00:17]} 56. Kf2 {[%emt 0:00:14]} Ke5 {[%emt 0:00:20]} 57. Rd7 {[%emt 0:00:10]} Ne4+ {[%emt 0:01:26]} 58. Ke2 {[%emt 0:00:12]} Rh2+ {[%emt 0:00:07]} 59. Kd1 {[%emt 0:00:20]} Rh1+ {[%emt 0:00:13]} 60. Ke2 {[%emt 0:00:03]} Nc3+ {[%emt 0:00:05]} 61. Kf2 {[%emt 0:00:29]} Rh2+ {[%emt 0:01:11]} 62. Ke3 {[%emt 0:00:28]} Rh3+ {[%emt 0:00:07]} (62... Rxc2 63. Rb7 (63. Kd3 Rc1 $11)) 63. Kd2 {[%emt 0:00:17]} Ne4+ {[%emt 0:00:21]} 64. Kc1 {[%emt 0:00:04]} Rxa3 {[%emt 0:00:08]} 65. Kb2 {[%emt 0:00:04]} (65. Re7+ Kd4 66. Kb2 (66. Rd7+ Kc4 $15) 66... Ra8) 65... Ra8 {[%emt 0:00:09]} 66. Rd3 {[%emt 0:00:17]} Nd6 {[%emt 0:00:11]} (66... Rb8+ 67. Ka2 $17) 67. Kb1 {[%emt 0:02:12]} (67. Re3+ Kd5 68. Rh3 (68. Rd3+ Kc5 $15) 68... Nc4+ 69. Kb1 Kc5 $17) 67... Nc4 {[%emt 0:00:10]} 68. Rd7 {[%emt 0:00:15]} Rb8+ {[%emt 0:00:11]} 69. Kc1 {[%emt 0:00:10]} Ke4 {[%emt 0:00:57]} 70. Rh7 {[%emt 0:00:44]} Rg8 {[%emt 0:00:31]} 71. Rd7 {[%emt 0:00:56]} ({But not} 71. Rh4+ $2 Kd5 72. Rh5+ Ke6 73. Rh6+ Kd7 $19) 71... Ke3 {[%emt 0:00:15]} 72. Re7+ {[%emt 0:00:37]} Kd4 {[%emt 0:00:06]} 73. Rd7+ {[%emt 0:00:02]} Kc3 {[%emt 0:00:11]} 74. Rd3+ {[%emt 0:00:04]} Kb4 {[%emt 0:00:06]} 75. Rb3+ {[%emt 0:00:31]} Kc5 {[%emt 0:00:06]} 76. Rd3 {[%emt 0:00:04]} Ra8 {[%emt 0:00:11]} 77. Kb1 {[%emt 0:00:29]} Ra3 {[%emt 0:00:26]} (77... Rb8+ $2 78. Ka1 $19) (77... Rh8 $15) 78. Rxa3 $11 {[%emt 0:00:05]} Nxa3+ {[%emt 0:00:03]} 79. Ka1 {[%emt 0:00:03]} Nxc2+ {[%emt 0:00:07]} 1/2-1/2

[Event "USA Championship 2024"]
[Site "Saint Louis"]
[Date "2024.10.12"]
[Round "2.2"]
[White "Sevian, Samuel"]
[Black "Robson, Ray"]
[Result "1-0"]
[ECO "D00"]
[WhiteElo "2689"]
[BlackElo "2693"]
[Annotator "TA"]
[PlyCount "107"]
[EventDate "2024.10.09"]
[EventType "tourn"]
[EventCountry "USA"]
[SourceTitle "playchess.com"]
[Source "ChessBase"]
[SourceQuality "1"]
[TimeControl "40/5400+30:1800+30"]

{[%evp 24,107,133,127,133,119,126,112,120,140,142,152,150,135,112,129,120,120,138,138,138,147,131,159,134,133,133,62,65,89,108,95,324,342,330,306,330,329,321,345,352,341,332,335,574,573,1267,1228,1014,1108,1139,1114,1094,1050,1140,906,906,921,802,738,6070,6070,5185,2282,5987,5745,5683,5609,29982,29983,6170,5218,5206,5206,29986,29987,29986,29987,29988,29986,29986,29987,29994,29993,29993,29994]} 1. d4 {[%emt 0:00:08]} Nf6 {[%emt 0:00:14]} 2. Nc3 {[%emt 0:00:15]} d5 {[%emt 0:00:34]} 3. Bf4 {[%emt 0:03:41]} g6 {[%emt 0:04:22]} 4. e3 {[%emt 0:00:00]} Bg7 {[%emt 0:05:34]} 5. h4 {[%emt 0:00:00]} h5 {[%emt 0:03:58]} 6. Nf3 {[%emt 0:00:00] D00: 1 d4 d5: Unusual lines.} O-O {[%emt 0:07:06]} 7. Ne5 {[%emt 0:00:49]} c5 {[%emt 0:05:43]} 8. Qd2 {[%emt 0:01:55]} cxd4 {[%emt 0:11:44]} 9. exd4 {[%emt 0:00:00]} Nc6 {[%emt 0:00:58]} 10. f3 {[%emt 0:00:00]} Bf5 {[%emt 0:01:32]} 11. Bb5 {[%emt 0:00:13]} Na5 {[%emt 0:17:23]} 12. g4 $146 {[%emt 0:03:09]} ({Predecessor:} 12. O-O-O a6 13. Be2 b5 14. g4 Be6 15. Bh6 Qc7 16. Rdg1 b4 17. Na4 b3 18. c3 bxa2 {0-1 Krishika,G (1756)-Tejaswini,G (2071) IND-ch U17 Girls 34th 2024 (5)}) 12... Be6 {[%emt 0:01:39]} (12... hxg4 13. h5 gxf3 14. hxg6 fxg6 15. O-O-O $14) 13. O-O-O {[%emt 0:18:06]} Rc8 {[%emt 0:01:06]} 14. Kb1 {[%emt 0:18:46]} Qb6 {[%emt 0:01:34]} 15. Be2 {[%emt 0:09:10]} Nc4 {[%emt 0:09:01]} 16. Bxc4 {[%emt 0:00:00]} dxc4 {[%emt 0:00:33] [#]} 17. Bh6 $1 {[%emt 0:02:19]} Rfd8 {[%emt 0:02:37]} (17... hxg4 $2 {too greedy.} 18. h5 Bxh6 19. Qxh6 $18) 18. Bxg7 {[%emt 0:00:00]} Kxg7 {[%emt 0:00:36]} 19. gxh5 {[%emt 0:00:00]} Nxh5 {[%emt 0:00:00]} 20. Rhg1 {[%emt 0:01:21]} Rh8 {[%emt 0:18:49] [#]} 21. Rg5 $1 {[%emt 0:10:19]} Nf6 {[%emt 0:02:42]} 22. d5 {[%emt 0:06:37]} Rcd8 {[%emt 0:11:26]} 23. Nxc4 {[%emt 0:03:30]} Qc7 {[%emt 0:00:00]} 24. Qd4 {[%emt 0:05:19]} Qh2 {[%emt 0:00:00]} 25. Ne3 {[%emt 0:05:12]} ({But not} 25. Qxa7 $6 Qxh4 26. Qg1 Nxd5 (26... Qxc4 27. dxe6 Rxd1+ 28. Qxd1 $11) 27. Nxd5 Qxc4 $11) (25. b3 $16) 25... Rxh4 $14 {[%emt 0:00:00]} 26. Qxa7 {[%emt 0:00:00]} Bc8 {[%emt 0:00:00]} 27. Rgg1 {[%emt 0:00:00]} Rf4 $2 (27... Rh3 $16) 28. Rh1 $18 {[%emt 0:00:00]} Qg3 {[%emt 0:00:00]} 29. Ne2 {[%emt 0:00:00]} Qxf3 {[%emt 0:00:00]} 30. Nxf4 Qxf4 {[%emt 0:01:55]} 31. Qa5 {[%emt 0:02:22]} Re8 32. Qc3 {[%emt 0:00:30]} Bd7 33. Rd4 {[%emt 0:01:21]} Qe5 $2 {[%emt 0:00:25]} (33... Qg5 {was called for.} 34. Rdh4 Rg8) 34. Nc4 $18 {[%emt 0:00:00]} Qg5 35. Rdh4 {[%emt 0:00:55]} Rg8 {[%emt 0:01:55]} 36. d6 {[%emt 0:00:40]} exd6 {[%emt 0:00:29]} 37. Nxd6 {[%emt 0:00:34]} Kf8 38. Nxb7 {[%emt 0:05:27]} Be6 {[%emt 0:00:00]} 39. Qd4 {[%emt 0:00:30]} Nh5 {[%emt 0:00:00]} 40. Nc5 {[%emt 0:00:36]} Bf5 {[%emt 0:02:53]} 41. a4 {[%emt 0:32:09]} Ng3 {[%emt 0:03:59]} 42. Qd6+ {[%emt 0:00:00]} Qe7 {[%emt 0:00:00]} 43. Qb8+ {[%emt 0:00:00]} Kg7 {[%emt 0:00:00]} 44. Rh7+ {[%emt 0:00:00]} Kf6 {[%emt 0:00:00]} 45. Qxg8 {[%emt 0:00:00]} Qxc5 {[%emt 0:00:00]} 46. Rxf7+ {[%emt 0:00:00]} Kg5 {[%emt 0:00:00]} 47. Rxf5+ {[%emt 0:00:00]} Nxf5 48. a5 {[%emt 0:00:55]} Nd4 {[%emt 0:00:00]} 49. Rg1+ {[%emt 0:00:00]} Kf4 {[%emt 0:00:00]} 50. Qxg6 {[%emt 0:00:00]} Nf3 {[%emt 0:00:00]} 51. Qg4+ {[%emt 0:00:00]} Ke3 {[%emt 0:00:00]} 52. Rg3 {[%emt 0:00:00]} Kd2 {[%emt 0:00:00]} 53. Qf4+ {[%emt 0:00:00]} Ke1 {[%emt 0:00:23]} 54. Rxf3 {[%emt 0:00:00]} 1-0

[Event "USA Championship 2024"]
[Site "Saint Louis"]
[Date "2024.10.12"]
[Round "2.3"]
[White "So, Wesley"]
[Black "Yoo, Christopher Woojin"]
[Result "1-0"]
[ECO "A20"]
[WhiteElo "2751"]
[BlackElo "2590"]
[Annotator "TA"]
[PlyCount "107"]
[EventDate "2024.10.09"]
[EventType "tourn"]
[EventCountry "USA"]
[SourceTitle "playchess.com"]
[Source "ChessBase"]
[SourceQuality "1"]
[TimeControl "40/5400+30:1800+30"]

{[%evp 9,107,0,0,8,0,4,11,13,37,40,47,44,33,33,43,38,51,35,25,33,86,85,89,89,93,89,118,108,127,114,139,135,138,146,152,155,163,162,160,154,177,168,205,185,201,221,195,190,200,186,190,205,212,175,206,147,201,202,224,0,89,0,222,164,164,162,162,145,256,248,262,263,287,283,286,268,324,285,332,364,362,338,432,433,406,244,241,234,232,116,108,0,373,373,373,283,1139,1068,793,788]} 1. c4 {[%emt 0:00:23]} Nf6 {[%emt 0:00:16]} 2. g3 {[%emt 0:00:20]} e5 {[%emt 0:02:35]} 3. Bg2 {[%emt 0:00:26]} Bc5 {[%emt 0:01:29]} 4. d3 {[%emt 0:01:00]} d5 {[%emt 0:01:09]} 5. cxd5 {[%emt 0:00:25]} Nxd5 {[%emt 0:00:05]} 6. Nc3 {[%emt 0:00:32]} Nxc3 {[%emt 0:00:51]} 7. bxc3 {[%emt 0:00:07]} O-O {[%emt 0:00:07]} 8. Nf3 {[%emt 0:01:37] The position is equal.} e4 {[%emt 0:03:21]} 9. dxe4 {[%emt 0:03:42]} Qxd1+ {[%emt 0:00:23]} 10. Kxd1 {[%emt 0:00:03]} Nc6 {[%emt 0:01:27][%cal Of8e8]} 11. Bf4 {[%emt 0:10:21]} f6 {[%emt 0:03:23]} (11... Bxf2 $2 12. e3 $18) 12. h4 {[%emt 0:04:00]} (12. Bxc7 Bxf2 13. Rf1 Be3 $16) 12... Bd7 {[%emt 0:12:30]} (12... Bxf2 $2 13. e3 $18) 13. e3 {[%emt 0:07:32][%cal Od1e2]} Bb6 {[%emt 0:03:13]} 14. Ke2 {[%emt 0:10:25]} Bg4 {[%emt 0:01:46] [#]} (14... Be6 $14) 15. Bh3 $1 $16 {[%emt 0:05:14]} Bxh3 {[%emt 0:02:32]} 16. Rxh3 {[%emt 0:00:36]} Rae8 {[%emt 0:03:09][%cal Ba8e8,Be8e6,Be6c6][%mdl 32]} 17. Nd2 {[%emt 0:00:42]} h5 {[%emt 0:03:52]} 18. Rb1 {[%emt 0:08:50]} Re6 {[%emt 0:02:07]} 19. Rhh1 {[%emt 0:04:46]} a6 {[%emt 0:06:52]} 20. Rhc1 {[%emt 0:04:53]} Nd8 {[%emt 0:00:58]} 21. c4 {[%emt 0:08:55]} Rc6 {[%emt 0:00:14]} 22. e5 {[%emt 0:00:46]} Re8 {[%emt 0:05:32]} 23. exf6 {[%emt 0:00:49]} gxf6 {[%emt 0:00:08]} 24. Kf3 {[%emt 0:02:30]} Kf7 {[%emt 0:01:39]} 25. Ne4 {[%emt 0:05:07]} f5 {[%emt 0:04:05]} 26. Nd2 {[%emt 0:00:27]} Bc5 {[%emt 0:04:11]} 27. Nb3 {[%emt 0:01:12]} b6 {[%emt 0:00:20] Prevents Na5} 28. Rd1 {[%emt 0:02:38] And now Nxc5 would win.} Ne6 {[%emt 0:01:27]} 29. Rd5 {[%emt 0:02:23]} Kg6 {[%emt 0:00:05]} 30. Rc1 {[%emt 0:02:51]} a5 {[%emt 0:05:00]} 31. a4 {[%emt 0:01:17]} Be7 {[%emt 0:02:21]} 32. Be5 {[%emt 0:03:13]} Ba3 {[%emt 0:03:34]} (32... Rd8 $16 33. Ke2 Rb8) 33. Rc2 $18 {[%emt 0:00:16]} Be7 {[%emt 0:00:05]} 34. Rc1 {[%emt 0:00:06]} (34. Rb5 $18 {and White stays clearly on top.}) 34... Ba3 $1 $16 {[%emt 0:00:59] [#]} 35. Rc2 {[%emt 0:00:29]} (35. Ra1 $1 $16 {[%cal Ra1a3]} Bb4 36. Rc1) 35... Be7 $18 {[%emt 0:03:55]} 36. Rd7 {[%emt 0:01:35]} Bf6 {[%emt 0:01:47]} 37. Bxf6 {[%emt 0:00:24]} Kxf6 {[%emt 0:00:04]} 38. Rd5 $36 {[%emt 0:00:12][%mdl 2048] White is in control.} Re7 {[%emt 0:02:57]} (38... Rg8 $16 39. e4 fxe4+ 40. Kxe4 Re8) 39. c5 {[%emt 0:04:46]} Re8 {[%emt 0:00:37]} 40. Rc1 {[%emt 0:00:30]} Rd8 {[%emt 0:01:18]} 41. e4 {[%emt 0:12:25]} fxe4+ {[%emt 0:00:59]} 42. Kxe4 {[%emt 0:00:57]} Rb8 {[%emt 0:02:38]} 43. cxb6 {[%emt 0:05:11]} Rxc1 {[%emt 0:00:09]} 44. Nxc1 {[%emt 0:00:02]} cxb6 {[%emt 0:00:09][%mdl 4096] Endgame. KRN-KRN} 45. Nd3 {[%emt 0:01:11] Against Nc5+} (45. Rxh5 Nc5+ 46. Kf4 Kg7 $11) 45... Rc8 {[%emt 0:02:51]} 46. Rd6 {[%emt 0:01:31]} (46. Rxh5 Rc4+ 47. Ke3 Kg7 $18) 46... Rc4+ {[%emt 0:01:22]} 47. Ke3 {[%emt 0:00:22] aiming for Nf4.} Rxa4 {[%emt 0:00:06]} 48. Nf4 {[%emt 0:01:44]} (48. Rxb6 Ra3 49. Rd6 Ke7) 48... Kf5 {[%emt 0:00:05][%cal Re6f4]} 49. Rd5+ {[%emt 0:00:57]} (49. Nxe6 Re4+ 50. Kd3 Rxe6 51. Rxe6 Kxe6 $11) (49. Rxe6 $18 Rxf4 50. Rxb6) 49... Kf6 $16 {[%emt 0:00:05]} 50. Rd6 $2 {[%emt 0:00:07][%mdl 8192] White is more active.} ({Reject} 50. Rxh5 $6 Nxf4 51. gxf4 Rb4 $11) (50. Nxe6 $16 Kxe6 51. Rb5 (51. Rxh5 Rb4 $16)) 50... Kf5 $1 $18 {[%emt 0:00:12]} 51. Rxe6 {[%emt 0:00:06]} ({Weaker is} 51. Nxe6 Re4+ 52. Kd3 Rxe6 53. Rd5+ Re5 54. Rxe5+ Kxe5 $11) 51... Rxf4 {[%emt 0:00:05]} 52. Rxb6 {[%emt 0:00:02]} Ra4 {[%emt 0:02:56]} (52... Re4+ 53. Kf3 Re7) 53. Kf3 {[%emt 0:01:49]} Ra3+ {[%emt 0:02:10]} 54. Kg2 {[%emt 0:02:17] Weighted Error Value: White=0.27 (precise) /Black=0.15 (very precise) .  Mistake:       	White=4     	Black=4      Inaccurate:     	White=1     	Black=1      OK:         	White=22    	Black=12     Best:        	White=3     	Black=3      Strong:       	White=1     	Black=2} 1-0

[Event "USA Championship 2024"]
[Site "Saint Louis"]
[Date "2024.10.12"]
[Round "2.4"]
[White "Oparin, Grigoriy"]
[Black "Mishra, Abhimanyu"]
[Result "1/2-1/2"]
[ECO "C78"]
[WhiteElo "2662"]
[BlackElo "2630"]
[Annotator "TA"]
[PlyCount "110"]
[EventDate "2024.10.09"]
[EventType "tourn"]
[EventCountry "USA"]
[SourceTitle "playchess.com"]
[Source "ChessBase"]
[SourceQuality "1"]
[TimeControl "40/5400+30:1800+30"]

{[%evp 34,110,0,0,0,0,0,0,0,0,0,0,0,0,0,-22,-20,-10,-16,-19,0,0,0,-45,0,0,0,0,0,0,0,0,0,0,0,0,13,13,16,15,21,14,13,13,31,13,13,13,18,13,13,13,13,0,0,0,0,0,0,0,8,0,8,0,13,13,13,0,0,0,0,0,0,0,0,0,0,0,0]} 1. e4 {[%emt 0:00:03]} e5 {[%emt 0:00:10]} 2. Nf3 {[%emt 0:00:05]} Nc6 {[%emt 0:00:08]} 3. Bb5 {[%emt 0:00:13]} a6 {[%emt 0:00:44]} 4. Ba4 {[%emt 0:00:06]} Nf6 {[%emt 0:00:18]} 5. O-O {[%emt 0:00:11]} b5 {[%emt 0:01:11]} 6. Bb3 {[%emt 0:00:10]} Bc5 {[%emt 0:00:38]} 7. c3 {[%emt 0:01:04]} d6 {[%emt 0:00:59]} 8. a4 {[%emt 0:01:16]} Rb8 {[%emt 0:01:08]} 9. d4 {[%emt 0:01:08]} Bb6 {[%emt 0:00:48]} 10. a5 $1 {[%emt 0:00:59] 10.a5 scores better than 10.axb5. C78: Ruy Lopez: Archangelsk and Möller Defences.} Ba7 {[%emt 0:00:48]} 11. h3 {[%emt 0:00:06]} Bb7 {[%emt 0:03:04]} 12. Re1 {[%emt 0:00:50]} O-O {[%emt 0:03:22]} 13. Be3 {[%emt 0:00:20]} exd4 {[%emt 0:03:21]} 14. cxd4 {[%emt 0:00:47]} Nb4 {[%emt 0:00:32]} 15. d5 {[%emt 0:00:55]} Bxe3 {[%emt 0:00:57]} 16. Rxe3 {[%emt 0:00:05]} c5 {[%emt 0:00:52]} 17. Na3 {[%emt 0:00:56]} Qxa5 {[%emt 0:03:30]} 18. Nc2 {[%emt 0:00:55]} Qb6 {[%emt 0:00:13]} 19. Nxb4 {[%emt 0:00:09]} cxb4 {[%emt 0:00:06]} 20. Qd2 {[%emt 0:01:13]} a5 {[%emt 0:05:51]} 21. Bc2 $146 {[%emt 0:02:45]} ({Predecessor:} 21. Nd4 Rbe8 22. Bc2 g6 23. Kh2 Nh5 24. g4 Nf6 25. Rae1 Rc8 26. Bb1 Rfe8 27. R3e2 {0-1 Nijboer,F (2584)-Ganguly,S (2651) Tata Steel-B 73rd 2011 (10)}) 21... Nd7 {[%emt 0:16:39]} 22. Nd4 {[%emt 0:13:36]} Ne5 {[%emt 0:02:50]} 23. Rg3 {[%emt 0:00:44]} Bc8 {[%emt 0:05:06]} ({Weaker is} 23... Nc4 24. Rxg7+ Kxg7 25. Qg5+ Kh8 26. Qf6+ (26. Nf5 Qd4 $18) 26... Kg8 27. Nf5) 24. Kh2 {[%emt 0:17:01]} Bd7 {[%emt 0:11:06]} 25. b3 {[%emt 0:02:34]} Ng6 {[%emt 0:09:42]} 26. Rf1 {[%emt 0:07:14]} Rbc8 {[%emt 0:05:32]} 27. f4 {[%emt 0:08:01]} Rc3 {[%emt 0:00:36]} 28. Rff3 {[%emt 0:05:07]} f6 {[%emt 0:06:08]} 29. Rxc3 {[%emt 0:06:11]} bxc3 {[%emt 0:00:11]} 30. Rxc3 {[%emt 0:00:04]} Nxf4 {[%emt 0:07:22]} 31. Qxf4 {[%emt 0:00:05]} Qxd4 {[%emt 0:00:06]} 32. Rc7 {[%emt 0:00:02]} Rc8 {[%emt 0:02:17]} 33. Rxd7 {[%emt 0:01:23]} Rxc2 {[%emt 0:00:05]} 34. Rxd6 {[%emt 0:06:45]} Qe5 {[%emt 0:04:11]} 35. Qxe5 {[%emt 0:00:10]} fxe5 {[%emt 0:00:02]} 36. Re6 {[%emt 0:06:52]} a4 {[%emt 0:02:37]} 37. bxa4 {[%emt 0:00:09]} (37. Rxe5 {simplifies} axb3 38. d6 Rd2 39. Rxb5 Rxd6 40. Rxb3 Rd4 41. Re3) 37... bxa4 {[%emt 0:00:04]} 38. Rxe5 {[%emt 0:00:14]} a3 {[%emt 0:03:05]} 39. d6 {[%emt 0:10:44]} Rd2 {[%emt 0:01:07]} 40. Ra5 {[%emt 0:00:10]} a2 {[%emt 0:01:34]} (40... Rxd6 41. Rxa3 Rg6 42. Kg1 $14) 41. d7 {[%emt 0:36:05]} (41. Kg3 {is interesting.} Kf7 42. d7 Ke7 43. Ra7) 41... Rxd7 {[%emt 0:31:28]} 42. Rxa2 {[%emt 0:00:10]} Rd3 {[%emt 0:00:00]} 43. Kg1 {[%emt 0:00:00]} Re3 {[%emt 0:00:00]} 44. Ra4 {[%emt 0:00:00]} Re2 {[%emt 0:00:00]} 45. Kf1 {[%emt 0:00:00]} Rb2 {[%emt 0:00:00]} 46. Ra1 {[%emt 0:00:00]} Kf7 {[%emt 0:00:00]} 47. Re1 {[%emt 0:00:00]} Ke6 {[%emt 0:00:00]} 48. Re2 {[%emt 0:00:00]} Rb3 {[%emt 0:00:00]} 49. Kf2 {[%emt 0:00:00]} Ke5 {[%emt 0:00:00]} 50. Re3 {[%emt 0:00:00]} Rb7 {[%emt 0:00:00]} 51. Kg3 {[%emt 0:00:00]} Rb6 {[%emt 0:00:00]} 52. Kf3 {[%emt 0:00:00]} Rf6+ {[%emt 0:00:00]} 53. Kg3 {[%emt 0:00:00]} Rb6 {[%emt 0:00:00]} 54. Kf3 {[%emt 0:00:00]} Rf6+ {[%emt 0:00:00]} 55. Kg3 {[%emt 0:00:00]} Rb6 {[%emt 0:00:23]} 1/2-1/2

[Event "USA Championship 2024"]
[Site "Saint Louis"]
[Date "2024.10.12"]
[Round "2.5"]
[White "Liang, Awonder"]
[Black "Niemann, Hans Moke"]
[Result "1/2-1/2"]
[ECO "C67"]
[WhiteElo "2677"]
[BlackElo "2733"]
[Annotator "TA"]
[PlyCount "70"]
[EventDate "2024.10.09"]
[EventType "tourn"]
[EventCountry "USA"]
[SourceTitle "playchess.com"]
[Source "ChessBase"]
[SourceQuality "1"]
[TimeControl "40/5400+30:1800+30"]

{[%evp 18,70,23,22,24,12,22,15,19,10,24,6,0,0,2,0,0,0,4,14,7,0,0,0,9,9,6,0,0,0,0,0,0,0,0,0,0,0,0,0,0,0,0,0,0,0,0,0,0,0,0,0,0,0,0]} 1. e4 {[%emt 0:00:01]} e5 {[%emt 0:00:36]} 2. Nf3 {[%emt 0:00:02]} Nc6 {[%emt 0:00:10]} 3. Bb5 {[%emt 0:00:06]} Nf6 {[%emt 0:00:22]} 4. O-O {[%emt 0:05:49][%cal Bh1f1,Bf1e1,Be1e5][%mdl 32]} Nxe4 {[%emt 0:00:12]} 5. Re1 {[%emt 0:00:09]} Nd6 {[%emt 0:00:12]} 6. Nxe5 {[%emt 0:00:03]} Be7 {[%emt 0:00:13]} 7. Bf1 {[%emt 0:00:06]} Nxe5 {[%emt 0:00:05]} 8. Rxe5 {[%emt 0:00:06]} O-O {[%emt 0:00:08]} 9. d4 {[%emt 0:00:04]} Bf6 {[%emt 0:00:08]} 10. Re1 {[%emt 0:08:16]} Re8 {[%emt 0:00:10]} 11. c3 {[%emt 0:00:08]} Rxe1 {[%emt 0:00:10]} 12. Qxe1 {[%emt 0:00:02]} Ne8 {[%emt 0:00:12][%cal Bd6e8,Be8g7,Bg7f5][%mdl 32]} 13. Bf4 {[%emt 0:00:04]} d5 {[%emt 0:00:11]} 14. Bd3 {[%emt 0:00:05]} g6 {[%emt 0:00:21] Die Stellung ist ausgeglichen.} 15. Nd2 {[%emt 0:00:06][%cal Bb1d2,Bd2f3,Bf3e5][%mdl 32]} Ng7 {[%emt 0:00:06]} 16. Qe2 {[%emt 0:01:00]} c6 {[%emt 0:01:55]} 17. Re1 {[%emt 0:00:25]} Bf5 {[%emt 0:01:06]} 18. Bxf5 {[%emt 0:00:07]} Nxf5 {[%emt 0:00:05]} 19. Nf3 {[%emt 0:00:06]} Ng7 {[%emt 0:00:13]} 20. Be5 {[%emt 0:00:06]} Ne6 {[%emt 0:00:05]} 21. Bxf6 {[%emt 0:00:09]} Qxf6 {[%emt 0:00:07]} 22. Ne5 {[%emt 0:00:12]} Re8 {[%emt 0:00:15]} 23. Ng4 {[%emt 0:00:05]} Qd8 {[%emt 0:00:10]} 24. Qe5 {[%emt 0:00:06] [#] Droht stark Nf6+.} Ng7 {[%emt 0:00:04]} 25. Qxe8+ {[%emt 0:00:07]} Nxe8 {[%emt 0:00:04]} 26. Rxe8+ {[%emt 0:00:05]} Qxe8 {[%emt 0:00:03][%cal Re8e1]} 27. Nf6+ {[%emt 0:00:05]} Kf8 {[%emt 0:00:03]} 28. Nxe8 {[%emt 0:00:05]} Kxe8 $11 {[%emt 0:00:03][%mdl 4096] Endspiel. KP-KP} 29. f4 {[%emt 0:00:20]} f5 {[%emt 0:00:05]} 30. Kf2 {[%emt 0:00:04]} Kf7 {[%emt 0:00:04]} 31. Ke3 {[%emt 0:00:03]} Ke6 {[%emt 0:00:05]} 32. Kd3 {[%emt 0:00:04]} Kd6 {[%emt 0:00:03]} 33. Ke3 {[%emt 0:00:06]} Ke6 {[%emt 0:00:03]} 34. Kd3 {[%emt 0:00:04]} Kd6 {[%emt 0:00:02]} 35. Ke3 {[%emt 0:00:04]} Ke6 {[%emt 0:00:08] Ein ziemlich ruhiges Remis.   Gewichteter Fehlerwert: Weiß=0.03 (makellos) /Schwarz=0.02 (makellos) .  OK:         	Weiß=10    	Schwarz=8     Bester:       	Weiß=1     	Schwarz=2} 1/2-1/2